bitfinex-derivatives/quotes_SOLF0:USTF0_20260308
["timestamp","ask_amount","ask_price","bid_price","bid_amount"]
[1772937068870,4.32115369,82.598,82.548,10.903]
[1772937069063,4.32115369,82.598,82.539,10.904]
[1772937069574,4.32115369,82.589,82.54,3.50992484]
[1772937070075,4.32115369,82.589,82.543,10.903]
[1772937070673,4.32115369,82.589,82.55,3.50992484]
[1772937071066,4.32115369,82.589,82.543,10.903]
[1772937071469,4.32115369,82.589,82.55,3.50992484]
[1772937071766,4.32115369,82.589,82.553,10.902]
[1772937071969,4.32115369,82.589,82.55,3.50992484]
[1772937072171,4.32115369,82.589,82.504,2.10754538]
[1772937072172,4.32115369,82.589,82.54,3.50992484]
[1772937072976,4.32115369,82.589,82.472,29.89210679]
[1772937072977,4.3607367,82.588,82.53,3.50992484]
[1772937073177,4.3607367,82.579,82.52,3.50992484]
[1772937073665,4.3607367,82.579,82.513,10.907]
[1772937073868,4.3607367,82.579,82.53,3.50992484]
[1772937075378,4.3607367,82.579,82.54,3.50992484]
[1772937076675,4.3607367,82.579,82.53,3.50992484]
[1772937078870,4.3607367,82.579,82.52,3.50992484]
[1772937079073,4.3607367,82.579,82.504,10.909]
[1772937079074,4.18507153,82.569,82.504,10.909]
[1772937079374,4.18507153,82.569,82.511,3.99167737]
[1772937080779,3.62214529,82.567,82.511,3.99167737]
[1772937082683,10.902,82.556,82.511,3.99167737]
[1772937082883,3.62214529,82.567,82.511,3.99167737]
[1772937083082,3.6001103,82.557,82.511,3.99167737]
[1772937084785,10.902,82.554,82.511,3.99167737]
[1772937085387,3.60383814,82.551,82.511,3.99167737]
[1772937086687,3.60383814,82.551,82.47,62.0]
[1772937086688,3.61008132,82.539,82.474,3.99167737]
[1772937086888,3.61008132,82.539,82.48,3.50992484]
[1772937087190,3.61008132,82.539,82.5,3.50992484]
[1772937087383,3.61008132,82.539,82.491,3.99167737]
[1772937088192,14.51408132,82.539,82.491,3.99167737]
[1772937088392,14.51408132,82.539,82.501,3.99167737]
[1772937088586,3.61008132,82.539,82.501,3.99167737]
[1772937088787,204.06104605,82.644,82.511,3.99167737]
[1772937088788,3.57604994,82.559,82.511,3.99167737]
[1772937090088,3.57604994,82.572,82.521,3.99167737]
[1772937090684,3.57604994,82.572,82.531,3.99167737]
[1772937090883,3.56072336,82.586,82.541,3.99167737]
[1772937091690,204.06104605,82.644,82.561,3.99167737]
[1772937091691,3.50992484,82.61,82.561,3.99167737]
[1772937091882,3.50992484,82.61,82.487,21.822]
[1772937091883,3.50992484,82.63,82.571,3.99167737]
[1772937092083,3.56072336,82.629,82.571,3.99167737]
[1772937092482,10.894,82.618,82.571,3.99167737]
[1772937093594,3.4580699,82.613,82.56,3.50992484]
[1772937094190,10.896,82.601,82.56,3.50992484]
[1772937094494,3.5614437,82.589,82.53,3.50992484]
[1772937095189,3.5614437,82.589,82.531,3.72107782]
[1772937095384,3.5614437,82.589,82.5,62.0]
[1772937095385,3.5614437,82.589,82.55,3.50992484]
[1772937096194,10.897,82.594,82.551,3.72107782]
[1772937096497,3.55851944,82.602,82.56,3.50992484]
[1772937097893,10.896,82.598,82.551,3.72107782]
[1772937101092,3.55851944,82.602,82.56,3.51824432]
[1772937102299,3.56503125,82.617,82.561,3.72107782]
[1772937103700,3.56503125,82.605,82.561,3.72107782]
[1772937104801,3.58648589,82.603,82.561,3.72107782]
[1772937105396,10.896,82.6,82.561,3.72107782]
[1772937106304,10.896,82.6,82.546,3.72107782]
[1772937106305,3.5863995,82.587,82.546,3.72107782]
[1772937106504,3.5863995,82.587,82.5,62.0]
[1772937106505,3.5863995,82.587,82.533,3.72107782]
[1772937106904,14.4853995,82.578,82.54,3.51824432]
[1772937107199,14.4853995,82.578,82.533,3.72107782]
[1772937107407,14.4853995,82.578,82.54,3.51824432]
[1772937107599,10.899,82.576,82.54,3.51824432]
[1772937107806,3.5863995,82.575,82.53,3.51824432]
[1772937107999,3.5863995,82.575,82.519,3.72107782]
[1772937108000,3.5863995,82.575,82.52,3.51824432]
[1772937108198,3.58938917,82.569,82.52,3.51824432]
[1772937108911,10.902,82.553,82.52,3.51824432]
[1772937109203,10.902,82.553,82.519,3.72107782]
[1772937111407,10.902,82.553,82.52,3.51824432]
[1772937112297,3.51824432,82.57,82.52,3.51824432]
[1772937112298,14.38568461,82.563,82.52,3.51824432]
[1772937112504,3.48468461,82.562,82.52,3.51824432]
[1772937113809,10.902,82.556,82.52,3.51824432]
[1772937114108,10.902,82.556,82.519,3.72107782]
[1772937114109,3.48468461,82.562,82.519,3.72107782]
[1772937114310,3.49173046,82.575,82.531,3.72107782]
[1772937114498,15.0011377,82.615,82.471,12.12]
[1772937114499,3.49173046,82.588,82.541,3.72107782]
[1772937115105,3.49173046,82.588,82.55,3.51824432]
[1772937116209,3.49173046,82.588,82.541,3.72107782]
[1772937119816,3.49173046,82.588,82.543,14.62407782]
[1772937120400,3.49173046,82.588,82.543,3.72107782]
[1772937120606,3.49858601,82.6,82.551,3.72107782]
[1772937121005,7.01683033,82.6,82.551,3.72107782]
[1772937121209,3.49858601,82.599,82.551,3.72107782]
[1772937121409,10.896,82.602,82.551,3.72107782]
[1772937121410,3.51824432,82.61,82.551,3.72107782]
[1772937121610,3.49858601,82.611,82.487,12.12]
[1772937121611,3.49858601,82.611,82.571,3.72107782]
[1772937122012,3.49858601,82.624,82.581,3.72107782]
[1772937122415,3.53533674,82.639,82.581,3.72107782]
[1772937122714,3.53533674,82.639,82.59,7.2549452]
[1772937122913,10.891,82.638,82.591,3.73670088]
[1772937123110,3.53533674,82.639,82.601,3.73670088]
[1772937123310,204.06104605,82.644,82.601,3.73670088]
[1772937124917,10.89,82.647,82.601,3.73670088]
[1772937125318,10.892,82.633,82.6,3.51824432]
[1772937126014,14.48956811,82.643,82.6,3.51824432]
[1772937126714,10.889,82.652,82.62,3.51824432]
[1772937127113,10.889,82.652,82.611,3.73670088]
[1772937127516,3.63824297,82.645,82.597,3.73670088]
[1772937128816,10.89,82.644,82.597,3.73670088]
[1772937129016,10.89,82.644,82.6,7.2549452]
[1772937129220,10.89,82.644,82.601,3.73670088]
[1772937131421,10.89,82.644,82.61,3.51824432]
[1772937131725,3.63824297,82.645,82.61,3.51824432]
[1772937131926,10.889,82.653,82.611,3.73670088]
[1772937132520,11.16552526,82.718,82.56,62.0]
[1772937132521,10.887,82.665,82.621,3.73670088]
[1772937133020,3.58703072,82.673,82.631,3.73670088]
[1772937133519,10.887,82.672,82.631,3.73670088]
[1772937133723,9.53241149,82.722,82.605,10.895]
[1772937133724,3.58703072,82.669,82.619,3.73670088]
[1772937134930,3.67040168,82.664,82.619,3.73670088]
[1772937135425,10.888,82.662,82.619,3.73670088]
[1772937135633,14.55840168,82.662,82.619,3.73670088]
[1772937136225,3.51824432,82.66,82.619,3.73670088]
[1772937137929,14.55840168,82.662,82.619,3.73670088]
[1772937141836,3.56897235,82.655,82.619,3.73670088]
[1772937142434,9.53241149,82.705,82.56,62.0]
[1772937142435,3.57616741,82.65,82.603,3.73670088]
[1772937142634,3.57616741,82.649,82.603,3.73670088]
[1772937143634,3.57616741,82.647,82.603,3.73670088]
[1772937143931,3.57616741,82.647,82.591,3.73670088]
[1772937144832,10.891,82.636,82.591,3.73670088]
[1772937149830,3.56443047,82.635,82.591,3.73670088]
[1772937153437,3.55142216,82.63,82.591,3.73670088]
[1772937154830,10.892,82.628,82.591,3.73670088]
[1772937157136,3.5512061,82.627,82.591,3.73670088]
[1772937157536,3.5512061,82.627,82.56,62.0]
[1772937157537,3.5512061,82.618,82.573,3.82858037]
[1772937157742,3.51824432,82.61,82.573,3.82858037]
[1772937158041,3.5512061,82.609,82.561,3.82858037]
[1772937158239,3.55670406,82.607,82.507,3.82858037]
[1772937158441,3.55670406,82.599,82.55,3.51824432]
[1772937158838,3.55670406,82.599,82.55,7.34682469]
[1772937159238,3.55670406,82.599,82.551,3.82858037]
[1772937159444,3.55670406,82.596,82.551,3.82858037]
[1772937160145,3.55670406,82.592,82.551,3.82858037]
[1772937161147,3.58200709,82.589,82.551,3.82858037]
[1772937162845,10.898,82.587,82.551,3.82858037]
[1772937164546,3.55077227,82.586,82.541,3.82858037]
[1772937165243,3.55077227,82.582,82.541,3.82858037]
[1772937166845,10.899,82.58,82.541,3.82858037]
[1772937167538,11.16552526,82.647,82.495,12.12]
[1772937167539,3.5502942,82.593,82.551,3.82858037]
[1772937168850,3.55044905,82.591,82.551,3.82858037]
[1772937169849,3.55044905,82.589,82.535,3.82858037]
[1772937170051,3.55044905,82.579,82.535,3.82858037]
[1772937172351,3.54150893,82.569,82.535,3.82858037]
[1772937173148,3.54150893,82.569,82.521,3.82858037]
[1772937173651,10.9,82.566,82.521,3.82858037]
[1772937174052,14.44150893,82.566,82.521,3.82858037]
[1772937176047,3.54150893,82.566,82.521,3.82858037]
[1772937176248,3.54150893,82.566,82.531,3.82858037]
[1772937178852,3.58157707,82.578,82.541,3.82858037]
[1772937180156,3.58157707,82.59,82.55,3.51921196]
[1772937180354,10.895,82.607,82.561,3.82858037]
[1772937180557,21.782,82.641,82.5,62.0]
[1772937180558,3.58100504,82.629,82.581,3.82858037]
[1772937181748,10.895,82.608,82.571,3.82858037]
[1772937182349,10.894,82.616,82.571,3.82858037]
[1772937182555,3.58100504,82.617,82.581,3.76583734]
[1772937184645,10.893,82.624,82.581,3.76583734]
[1772937187554,3.646631,82.632,82.581,3.76583734]
[1772937188157,10.892,82.63,82.581,3.76583734]
[1772937189955,3.64448604,82.626,82.581,3.76583734]
[1772937190363,21.776,82.663,82.57,3.51921196]
[1772937190364,3.63951028,82.619,82.57,3.51921196]
[1772937190663,3.63951028,82.609,82.56,3.51921196]
[1772937191661,3.63951028,82.609,82.56,3.76583734]
[1772937191862,10.896,82.602,82.56,3.76583734]
[1772937196565,10.896,82.602,82.561,3.76583734]
[1772937197866,3.57221919,82.601,82.561,3.76583734]
[1772937204071,10.895,82.605,82.561,3.76583734]
[1772937204663,3.56363786,82.612,82.571,3.76583734]
[1772937205271,3.56364711,82.623,82.581,3.76583734]
[1772937205466,14.45564711,82.633,82.581,3.76583734]
[1772937205667,3.56364711,82.632,82.581,3.76583734]
[1772937206069,3.56364711,82.644,82.601,3.76583734]
[1772937207367,3.53593172,82.657,82.611,3.76583734]
[1772937208479,3.54325514,82.649,82.598,3.76583734]
[1772937209873,3.54325514,82.643,82.598,3.76583734]
[1772937210872,10.891,82.641,82.598,3.76583734]
[1772937211677,14.47945663,82.641,82.598,3.76583734]
[1772937212072,10.891,82.636,82.598,3.76583734]
[1772937213178,14.47645333,82.636,82.598,3.76583734]
[1772937219185,3.58545333,82.636,82.598,3.76583734]
[1772937225193,3.58545333,82.636,82.585,3.70847597]
[1772937225898,3.50703154,82.632,82.587,3.70847597]
[1772937226594,3.50703154,82.632,82.546,12.12]
[1772937226595,10.891,82.64,82.593,3.70847597]
[1772937227001,14.40858127,82.64,82.593,3.70847597]
[1772937227801,14.40858127,82.64,82.595,3.70847597]
[1772937228299,3.51924731,82.639,82.595,3.70847597]
[1772937229095,3.51924731,82.627,82.58,3.70847597]
[1772937230199,3.51924731,82.624,82.58,3.70847597]
[1772937234297,3.51924731,82.624,82.582,14.60647597]
[1772937234499,3.51924731,82.624,82.583,3.70847597]
[1772937236201,3.51924731,82.624,82.582,10.898]
[1772937236202,3.52969339,82.639,82.585,3.70847597]
[1772937236700,3.52969339,82.639,82.58,3.51441482]
[1772937236701,10.891,82.638,82.591,3.70847597]
[1772937237293,3.52969339,82.639,82.595,3.70847597]
[1772937239003,3.52969339,82.639,82.597,10.896]
[1772937239198,3.52969339,82.639,82.601,3.70847597]
[1772937240193,3.53203349,82.655,82.604,3.70847597]
[1772937240402,3.53203349,82.655,82.611,3.70847597]
[1772937240904,3.53203349,82.655,82.613,3.70847597]
[1772937242013,3.53203349,82.655,82.61,3.51441482]
[1772937242014,3.53203349,82.655,82.616,3.70847597]
[1772937247306,10.888,82.664,82.621,3.82945]
[1772937247507,3.5340232,82.666,82.621,3.82945]
[1772937248907,3.5340232,82.666,82.631,3.82945]
[1772937249115,10.887,82.672,82.631,3.82945]
[1772937249412,3.53287781,82.669,82.621,3.82945]
[1772937250806,3.5449735,82.661,82.621,3.82945]
[1772937251011,3.5449735,82.659,82.611,3.82945]
[1772937251211,3.5449735,82.659,82.6,7.34386482]
[1772937251609,3.5449735,82.65,82.602,10.896]
[1772937252010,3.5449735,82.65,82.601,3.82945]
[1772937252319,3.55299199,82.649,82.601,3.82945]
[1772937252519,3.55299199,82.648,82.601,3.82945]
[1772937253516,3.55299199,82.648,82.604,3.82945]
[1772937255020,3.55299199,82.648,82.607,3.82945]
[1772937255418,3.55299199,82.648,82.611,3.82945]
[1772937257620,3.55299199,82.648,82.601,3.82945]
[1772937258422,3.610428,82.646,82.603,3.82945]
[1772937259719,3.610428,82.646,82.61,3.51441482]
[1772937260420,3.610428,82.646,82.61,7.34386482]
[1772937260720,3.68876052,82.656,82.612,3.82945]
[1772937262023,3.68876052,82.656,82.615,3.82945]
[1772937262215,3.68876052,82.656,82.621,3.82945]
[1772937262615,3.70469936,82.679,82.621,3.82945]
[1772937262814,10.887,82.67,82.621,3.82945]
[1772937263312,3.70469936,82.669,82.621,3.82945]
[1772937263821,3.70469936,82.669,82.624,3.82945]
[1772937265618,3.70469936,82.669,82.57,62.0]
[1772937265619,3.71245496,82.667,82.608,3.82945]
[1772937265820,3.71245496,82.659,82.608,3.82945]
[1772937266723,2.10575361,82.696,82.597,3.82945]
[1772937266724,3.71243177,82.649,82.597,3.82945]
[1772937267923,3.71243177,82.647,82.597,3.82945]
[1772937269024,3.71183013,82.643,82.597,3.82945]
[1772937271324,14.57247819,82.642,82.597,3.82945]
[1772937275930,10.889,82.649,82.6,3.98013626]
[1772937276121,10.889,82.649,82.601,3.98013626]
[1772937276520,14.57577499,82.649,82.601,3.98013626]
[1772937276724,3.68677499,82.646,82.604,3.98013626]
[1772937278229,3.68677499,82.658,82.611,3.98013626]
[1772937279925,3.68677499,82.658,82.614,10.894]
[1772937280329,3.68677499,82.681,82.633,3.98013626]
[1772937280631,3.68677499,82.679,82.633,3.98013626]
[1772937280826,3.68677499,82.669,82.611,3.98013626]
[1772937281033,3.68677499,82.649,82.611,3.98013626]
[1772937281228,3.68677499,82.649,82.606,10.895]
[1772937282934,3.68677499,82.649,82.606,14.87513626]
[1772937284539,3.68677499,82.649,82.606,3.98013626]
[1772937284727,3.68677499,82.647,82.606,3.98013626]
[1772937285734,10.89,82.645,82.606,3.98013626]
[1772937286029,3.68677499,82.644,82.606,3.98013626]
[1772937295851,3.68677499,82.644,82.6,3.51405991]
[1772937295852,3.68677499,82.659,82.601,3.98013626]
[1772937296947,3.68677499,82.655,82.608,3.98013626]
[1772937298857,3.68677499,82.653,82.608,3.98013626]
[1772937300757,10.889,82.652,82.608,3.98013626]
[1772937301056,3.68677499,82.651,82.608,3.98013626]
[1772937301760,3.68677499,82.649,82.608,3.98013626]
[1772937303759,10.89,82.648,82.608,3.98013626]
[1772937303960,3.73020076,82.647,82.608,3.98013626]
[1772937304764,10.89,82.646,82.608,3.98013626]
[1772937304964,3.76485023,82.645,82.608,3.98013626]
[1772937309468,10.89,82.642,82.608,3.98013626]
[1772937309769,3.76035928,82.641,82.608,3.98013626]
[1772937312571,10.889,82.651,82.608,3.98013626]
[1772937312870,3.7617936,82.66,82.608,3.98013626]
[1772937313876,3.7617936,82.657,82.61,4.00900533]
[1772937314977,14.66707377,82.654,82.61,4.00900533]
[1772937315769,14.66707377,82.654,82.611,4.00900533]
[1772937318574,9.53303698,82.669,82.63,3.51405991]
[1772937318777,3.77807377,82.678,82.631,4.00900533]
[1772937319281,3.77807377,82.678,82.641,4.00900533]
[1772937321782,14.66207377,82.688,82.641,4.00900533]
[1772937321980,3.77807377,82.687,82.641,4.00900533]
[1772937324676,3.77807377,82.687,82.643,4.00900533]
[1772937327485,3.77807377,82.687,82.646,4.00900533]
[1772937330581,3.51405991,82.69,82.61,62.0]
[1772937330582,3.51405991,82.71,82.651,4.00900533]
[1772937331487,3.77807377,82.749,82.671,4.00900533]
[1772937331681,3.77807377,82.729,82.671,4.00900533]
[1772937331984,3.77807377,82.722,82.673,4.00900533]
[1772937332786,3.92724786,82.719,82.673,4.00900533]
[1772937337886,3.92724786,82.719,82.676,14.88170094]
[1772937338085,3.92724786,82.719,82.677,3.99570094]
[1772937340595,3.92724786,82.719,82.667,14.88270094]
[1772937340798,3.92724786,82.719,82.668,3.99570094]
[1772937341985,3.92314899,82.715,82.671,3.99570094]
[1772937345598,3.92314899,82.715,82.673,3.99570094]
[1772937348106,3.69187862,82.709,82.673,3.99570094]
[1772937354217,3.61599038,82.707,82.662,3.99570094]
[1772937354416,3.61599038,82.699,82.662,3.99570094]
[1772937355119,3.61599038,82.719,82.671,3.99570094]
[1772937356018,3.50837585,82.72,82.671,3.99570094]
[1772937356019,3.61599038,82.718,82.671,3.99570094]
[1772937356211,3.61599038,82.709,82.671,3.99570094]
[1772937356413,3.61599038,82.709,82.661,3.99570094]
[1772937357817,3.61599038,82.709,82.664,3.99570094]
[1772937358821,3.61599038,82.709,82.671,3.99570094]
[1772937360117,3.61599038,82.709,82.65,3.50837585]
[1772937360316,3.5667257,82.699,82.651,3.99570094]
[1772937361821,3.5667257,82.699,82.655,3.99570094]
[1772937362225,3.5667257,82.699,82.641,3.70083552]
[1772937363224,3.5636086,82.689,82.641,3.70083552]
[1772937363820,3.5636086,82.689,82.649,3.82708813]
[1772937366025,3.5636086,82.689,82.652,3.82708813]
[1772937366919,3.5636086,82.689,82.64,3.50837585]
[1772937366920,3.5636086,82.689,82.655,3.82708813]
[1772937367122,3.53522202,82.704,82.655,3.82708813]
[1772937367316,3.53522202,82.704,82.65,3.50837585]
[1772937367317,3.53522202,82.704,82.664,14.71408813]
[1772937369929,3.54265423,82.699,82.656,10.888]
[1772937370630,3.54265423,82.699,82.656,14.71508813]
[1772937370831,3.54493503,82.689,82.647,10.89]
[1772937371330,3.54493503,82.689,82.647,14.71708813]
[1772937371530,3.54493503,82.689,82.65,3.82708813]
[1772937371731,14.42693503,82.703,82.65,3.82708813]
[1772937372030,3.50837585,82.7,82.651,3.82708813]
[1772937372230,14.42693503,82.703,82.65,3.50837585]
[1772937372231,3.54493503,82.703,82.654,3.82708813]
[1772937372826,3.54493503,82.703,82.66,3.82708813]
[1772937374130,3.54493503,82.703,82.659,10.888]
[1772937374131,3.55252097,82.699,82.651,10.889]
[1772937374330,3.55252097,82.689,82.651,10.889]
[1772937376325,3.55252097,82.689,82.651,14.71608813]
[1772937378335,3.54711926,82.688,82.642,10.89]
[1772937379134,3.54711926,82.688,82.643,3.82708813]
[1772937381432,3.54711926,82.688,82.644,10.89]
[1772937381737,3.54711926,82.688,82.645,3.82708813]
[1772937383235,3.5549314,82.686,82.645,3.82708813]
[1772937386240,3.55489694,82.679,82.635,3.82708813]
[1772937387833,3.55053575,82.678,82.635,3.82708813]
[1772937388939,3.55053575,82.678,82.632,202.03003988]
[1772937388940,3.55053575,82.674,82.632,202.03003988]
[1772937390141,3.562332,82.669,82.632,202.03003988]
[1772937390438,3.562332,82.666,82.614,3.82708813]
[1772937390644,3.562332,82.659,82.614,3.82708813]
[1772937393846,3.53811783,82.656,82.614,3.82708813]
[1772937397143,10.889,82.654,82.614,3.82708813]
[1772937397339,3.54462944,82.653,82.614,3.82708813]
[1772937405857,3.51420109,82.66,82.614,3.82708813]
[1772937405858,3.56694902,82.651,82.614,3.82708813]
[1772937406663,10.89,82.649,82.614,3.82708813]
[1772937406871,3.56694902,82.648,82.614,3.82708813]
[1772937416473,3.61781413,82.644,82.603,3.7146881]
[1772937419379,3.61781413,82.644,82.605,3.7146881]
[1772937420275,3.61810536,82.641,82.605,3.7146881]
[1772937420579,10.891,82.642,82.605,3.7146881]
[1772937420580,3.61810536,82.639,82.605,3.7146881]
[1772937420982,3.61810536,82.633,82.593,3.7146881]
[1772937421172,3.62377698,82.629,82.593,3.7146881]
[1772937425379,3.59803615,82.648,82.601,3.8147831]
[1772937425581,3.59803615,82.659,82.611,3.8147831]
[1772937426877,3.51420109,82.66,82.611,3.8147831]
[1772937426878,3.59803615,82.655,82.611,3.8147831]
[1772937427477,3.65648823,82.645,82.597,3.8147831]
[1772937427679,3.65648823,82.639,82.581,3.8147831]
[1772937427984,3.65648823,82.629,82.581,3.8147831]
[1772937429684,3.66888218,82.627,82.581,3.8147831]
[1772937430177,3.66888218,82.624,82.581,3.8147831]
[1772937431784,10.893,82.622,82.581,3.8147831]
[1772937431980,3.51420109,82.62,82.581,3.8147831]
[1772937432284,3.6797264,82.619,82.561,3.8147831]
[1772937433181,10.894,82.612,82.563,3.8147831]
[1772937433780,10.894,82.612,82.56,3.51420109]
[1772937433781,10.894,82.612,82.566,3.8147831]
[1772937438790,14.54825638,82.612,82.566,3.8147831]
[1772937439083,3.65425638,82.611,82.566,3.8147831]
[1772937440895,3.65425638,82.611,82.568,3.8147831]
[1772937441889,3.65425638,82.611,82.57,3.8147831]
[1772937445293,3.65425638,82.611,82.528,30.10695607]
[1772937445294,3.66580975,82.639,82.581,3.8147831]
[1772937445490,3.66580975,82.639,82.591,3.8147831]
[1772937446788,3.66580975,82.637,82.591,3.8147831]
[1772937447601,3.66485219,82.634,82.591,3.8147831]
[1772937448901,3.66485219,82.631,82.591,3.8147831]
[1772937451502,14.40520109,82.64,82.591,3.8147831]
[1772937452100,3.67464885,82.639,82.591,3.8147831]
[1772937453003,3.67464885,82.639,82.595,3.70211831]
[1772937456194,3.67464885,82.639,82.596,10.896]
[1772937456405,3.67464885,82.639,82.597,3.70211831]
[1772937458500,3.67004605,82.629,82.587,3.70211831]
[1772937458706,3.67004605,82.619,82.576,3.70211831]
[1772937459003,3.67004605,82.609,82.561,3.70211831]
[1772937460803,14.56504605,82.609,82.561,3.70211831]
[1772937461205,3.67004605,82.608,82.561,3.70211831]
[1772937464409,3.59458057,82.613,82.564,3.70211831]
[1772937465104,10.894,82.618,82.573,3.70211831]
[1772937465308,3.59458057,82.624,82.573,3.70211831]
[1772937466808,3.6136196,82.619,82.573,14.60111831]
[1772937467004,3.6136196,82.609,82.573,14.60111831]
[1772937467510,3.6136196,82.609,82.574,3.70211831]
[1772937470903,7.12948371,82.63,82.581,3.70211831]
[1772937471110,3.61298654,82.629,82.581,3.70211831]
[1772937473011,3.61631998,82.627,82.581,3.70211831]
[1772937474913,3.61504282,82.625,82.581,3.70211831]
[1772937476910,3.61504282,82.625,82.582,10.898]
[1772937477110,10.891,82.635,82.583,3.70211831]
[1772937477808,14.50659089,82.635,82.583,3.70211831]
[1772937478116,14.50659089,82.635,82.586,3.70211831]
[1772937478317,14.50659089,82.635,82.591,3.70211831]
[1772937478915,3.61559089,82.634,82.591,3.70211831]
[1772937479710,3.61559089,82.634,82.55,30.10695607]
[1772937479711,312.31358712,82.643,82.594,3.70211831]
[1772937480011,315.91937843,82.643,82.594,3.70211831]
[1772937480712,3.60579131,82.642,82.594,3.70211831]
[1772937482020,14.49667306,82.641,82.594,3.70211831]
[1772937482221,3.6039703,82.64,82.594,3.70211831]
[1772937482427,3.60301191,82.639,82.594,3.70211831]
[1772937483524,14.49401191,82.639,82.594,3.70211831]
[1772937485523,301.42358712,82.643,82.601,3.94701799]
[1772937486828,301.42358712,82.643,82.603,3.94701799]
[1772937487629,3.60895617,82.649,82.603,3.94701799]
[1772937487828,3.60479764,82.647,82.603,3.94701799]
[1772937488830,3.60479764,82.645,82.603,3.94701799]
[1772937489527,3.51649717,82.64,82.603,3.94701799]
[1772937489728,3.60624809,82.639,82.594,3.94701799]
[1772937490830,3.60624809,82.637,82.594,3.94701799]
[1772937491624,3.60624809,82.637,82.596,3.94701799]
[1772937492327,3.60624809,82.637,82.601,10.896]
[1772937492531,14.49557264,82.647,82.602,3.94701799]
[1772937492930,3.60557264,82.646,82.602,3.94701799]
[1772937493130,3.60557264,82.646,82.604,3.94701799]
[1772937494332,3.60557264,82.646,82.607,3.94701799]
[1772937496030,3.60557264,82.646,82.609,3.94701799]
[1772937496329,3.59155314,82.659,82.609,3.94701799]
[1772937496533,3.59155314,82.659,82.574,12.1]
[1772937496534,3.59155314,82.659,82.615,3.94701799]
[1772937498636,3.61454329,82.649,82.606,10.895]
[1772937499739,3.61454329,82.649,82.606,14.84201799]
[1772937499934,3.61454329,82.649,82.607,3.94701799]
[1772937500332,7.12706786,82.66,82.609,3.94701799]
[1772937500731,3.61057069,82.66,82.615,10.894]
[1772937500931,10.888,82.663,82.616,3.94701799]
[1772937501439,14.49868771,82.663,82.616,3.94701799]
[1772937503239,3.61819133,82.662,82.616,3.94701799]
[1772937503446,3.61819133,82.659,82.616,3.94701799]
[1772937512857,3.62218676,82.656,82.616,3.94701799]
[1772937514349,3.51649717,82.66,82.616,3.94701799]
[1772937514548,10.887,82.665,82.616,3.94701799]
[1772937514951,10.887,82.665,82.62,4.00589339]
[1772937515354,3.62232121,82.668,82.621,4.00589339]
[1772937516852,3.62232121,82.668,82.622,4.00589339]
[1772937517452,10.887,82.667,82.622,4.00589339]
[1772937517655,3.51649717,82.67,82.622,4.00589339]
[1772937517656,3.62070853,82.666,82.622,4.00589339]
[1772937518756,10.888,82.663,82.622,4.00589339]
[1772937521355,14.54473438,82.663,82.622,4.00589339]
[1772937522659,3.65673438,82.662,82.622,4.00589339]
[1772937523155,3.65673438,82.659,82.614,10.894]
[1772937523459,3.65673438,82.659,82.612,4.00589339]
[1772937524750,3.66510671,82.65,82.612,4.00589339]
[1772937524951,3.66510671,82.65,82.613,4.00589339]
[1772937526263,3.67173168,82.669,82.615,4.00589339]
[1772937527863,3.67161517,82.664,82.62,4.00589339]
[1772937528762,3.67161517,82.661,82.62,4.00589339]
[1772937534060,3.6537518,82.671,82.623,4.00589339]
[1772937534467,3.6537518,82.671,82.631,4.00589339]
[1772937534765,3.6537518,82.691,82.65,3.51266498]
[1772937534970,3.6537518,82.691,82.651,4.00589339]
[1772937535670,3.65531243,82.703,82.661,4.00589339]
[1772937540668,3.68329014,82.699,82.661,4.00589339]
[1772937540973,3.68329014,82.699,82.648,4.00589339]
[1772937541568,3.68329014,82.699,82.65,3.51266498]
[1772937541769,3.68329014,82.699,82.651,4.00589339]
[1772937542273,3.68329014,82.699,82.661,3.80413621]
[1772937542575,3.68442315,82.71,82.671,3.78113342]
[1772937543479,3.58429957,82.722,82.671,3.78113342]
[1772937544568,3.58429957,82.733,82.684,3.78113342]
[1772937545777,3.58429957,82.733,82.687,3.78113342]
[1772937547277,3.58429957,82.733,82.689,3.78113342]
[1772937548071,10.877,82.741,82.691,3.78113342]
[1772937548477,3.57289425,82.74,82.691,3.78113342]
[1772937549574,3.5715108,82.738,82.688,10.884]
[1772937550173,3.5715108,82.729,82.681,3.78113342]
[1772937552377,3.5715108,82.729,82.685,3.78113342]
[1772937553587,3.54140249,82.739,82.692,3.78113342]
[1772937554888,3.54140249,82.739,82.694,3.78113342]
[1772937555781,3.54140249,82.739,82.696,3.78113342]
[1772937556189,7.05247894,82.75,82.701,3.78113342]
[1772937556384,3.53981396,82.749,82.701,3.78113342]
[1772937557792,3.53981396,82.749,82.705,3.78113342]
[1772937558590,3.54948592,82.739,82.696,10.883]
[1772937560085,3.54948592,82.739,82.694,3.78113342]